{"text_format":"2","workbook":"xlsx","n_sheets":3,"sheets":["Folha1","Folha2","Folha3"],"not_rendered":{"charts":0,"images":0,"macros":0,"external_links":0,"defined_names":1,"comments":0,"pivot_tables":0},"unopened":[],"bounds":{"document_bytes":16777216,"sheet_cells":100000,"run_cost":"one","rows_first":2000,"rows_last":500,"rows_between":2000,"halvings":0,"cell_chars":16384,"cell_head_chars":4096},"cells_cut":0,"cells_raw":0,"read":"whole","date_system":"1900"}

{"sheet":"Folha1","index":0,"n_rows":16,"n_cols":8,"rows_kept":16,"cut":false,"hidden":false,"merged":[]}
[]
[]
[null,null,"TEER 2012/2013","1º Ciclo do Ensino Básico"]
[]
[]
["Concelho","Escola","Nome do aluno","Teórica (cot)","Prática (nº de falhas)","Prática (cotação)","Total","Apreciação"]
["Ribeira Brava","EB1/PE da Serra de Água ","Mariana Aguiar",63,null,100,{"$f":"D7+F7","v":163},"1º"]
["São Vicente","EB1/PE da Boaventura","Polly Jéssica Silva Pereira",66,null,95,{"$f":"D8+F8","v":161},"2º"]
["Santa Cruz","EB1/PE da Camacha","Bernardo Rodrigues",57,null,100,{"$f":"D9+F9","v":157}]
["Ponta do Sol","EB1/PE Lombada ","André dos Santos Faria Relva",62,null,95,{"$f":"D10+F10","v":157},"3º"]
["Calheta","EB1/PE Estreito da Calheta","José Teixeira",57,null,100,{"$f":"D11+F11","v":157}]
["Santana","EB1/PE de Santana ","Diogo Azevedo",61,null,95,{"$f":"D12+F12","v":156}]
["Funchal","EB1/PE Lombo Segundo","Guilherme Fernandes",56,null,100,{"$f":"D13+F13","v":156}]
["Câmara de Lobos","EB1/PE do Foro ","Vanessa Costa",51,null,100,{"$f":"D14+F14","v":151}]
["Machico","EB1/PE Santo António da Serra ","César Tiago Vieira Gonçalves",47,null,95,{"$f":"D15+F15","v":142}]
["Porto Moniz","EB1/PE de Porto Moniz","Margarida Marcos Osório",47,null,90,{"$f":"D16+F16","v":137}]

{"sheet":"Folha2","index":1,"n_rows":29,"n_cols":7,"rows_kept":29,"cut":false,"hidden":false,"merged":[]}
[null,"TEER 2012/2013","2º Ciclo do Ensino Básico"]
[]
["Escola","Nome do aluno","Teórica (cot)","Prática (nº de falhas)","Prática (cotação)","Total","Apreciação"]
["Bartolomeu Perestrelo ","Gonçalo Rodrigues Pereira",85,null,{"$f":"100-D4*5","v":100},{"$f":"C4+E4","v":185},"1º"]
["Porto da Cruz ","Ricardo Ramos",85,null,95,{"$f":"C5+E5","v":180},"2º"]
["Padre Manuel Álvares ","Carolina Isabel Duarte Aguiar",80,null,{"$f":"100-D6*5","v":100},{"$f":"C6+E6","v":180},"3º"]
["Alfredo Ferreira Nóbrega Júnior ","Andreia Correia",82,null,95,{"$f":"C7+E7","v":177}]
["Horácio Bento Gouveia","Beatriz Fabiana Faria Sousa",76,null,{"$f":"100-D8*5","v":100},{"$f":"C8+E8","v":176}]
["Estreito de Câmara de Lobos ","Mateus Rodrigues.",80,null,95,{"$f":"C9+E9","v":175}]
["Machico","Marco Nóbrega  ",72,null,{"$f":"100-D10*5","v":100},{"$f":"C10+E10","v":172}]
["Infante D. Henrique ","Vicente Pestana Câmara",72,null,{"$f":"100-D11*5","v":100},{"$f":"C11+E11","v":172}]
["Lucinda Andrade","Joseph Cristóvão Teixeira Freitas",76,0,95,{"$f":"C12+E12","v":171}]
["Ângelo Augusto da Silva "," Diana Sofia Ponte Camacho",81,null,90,{"$f":"C13+E13","v":171}]
["Caniço ","José Rodrigo Gonçalves Mano",71,null,{"$f":"100-D14*5","v":100},{"$f":"C14+E14","v":171}]
["Ponta do Sol","Sebastien Gonçalves",71,null,{"$f":"100-D15*5","v":100},{"$f":"C15+E15","v":171}]
["Calheta","Bruno Timóteo da Silva Gomes",70,null,{"$f":"100-D16*5","v":100},{"$f":"C16+E16","v":170}]
["Santa Cruz ","Vítor Gonçalves  ",67,null,{"$f":"100-D17*5","v":100},{"$f":"C17+E17","v":167}]
["São Jorge ","António Edgar Martins Freitas",71,null,95,{"$f":"C18+E18","v":166}]
["Louros","Tiago Freitas",66,null,{"$f":"100-D19*5","v":100},{"$f":"C19+E19","v":166}]
["Santo António ","Beatriz Henriques",70,null,95,{"$f":"C20+E20","v":165}]
["Campanário","Ilídio Rodrigo Branco Vicente",63,null,{"$f":"100-D21*5","v":100},{"$f":"C21+E21","v":163}]
[" Torre","Bruno Pestana",62,null,{"$f":"100-D22*5","v":100},{"$f":"C22+E22","v":162}]
["São Roque - Eduardo Brazão Castro","Diogo Dinarte Pita Temtem",61,null,100,{"$f":"C23+E23","v":161}]
["Carmo - Luís Maurílio Silva Dantas","Nuno José Silva Oliveira",76,null,85,{"$f":"C24+E24","v":161}]
["Santana","Hugo Luís Martins Silva",71,null,90,{"$f":"C25+E25","v":161}]
["Francisco M S Barreto ","Daniela Pombo",64,null,90,{"$f":"C26+E26","v":154}]
["Gonçalves Zarco ","João Bettencourt",40,null,95,{"$f":"C27+E27","v":135}]
["Caniçal","João Lopes",40,null,95,{"$f":"C28+E28","v":135}]
["Curral das Freiras","Pedro Diogo Camacho Gonçalves  ",48,null,85,{"$f":"C29+E29","v":133}]

{"sheet":"Folha3","index":2,"n_rows":29,"n_cols":7,"rows_kept":29,"cut":false,"hidden":false,"merged":[]}
[null,"TEER 2012/2013","3º Ciclo do Ensino Básico"]
[]
["Escola","Nome do aluno","Teórica (cot)","Prática (nº de falhas)","Prática (cotação)","Total","Apreciação"]
["São Roque - Eduardo Brazão Castro","Rúben Tiago Sousa Lucas",96,null,{"$f":"100-D4*5","v":100},{"$f":"C4+E4","v":196},"1º"]
["Bartolomeu Perestrelo ","Rúben Freitas",87,null,{"$f":"100-D5*5","v":100},{"$f":"C5+E5","v":187},"2º"]
["Horácio Bento Gouveia","Andreia José Freitas Teles",91,null,95,{"$f":"C6+E6","v":186},"3º"]
["Machico","Gonçalo Vieira",78,null,{"$f":"100-D7*5","v":100},{"$f":"C7+E7","v":178}]
["Infante D. Henrique ","João Álvaro Freitas Gonçalves",78,null,{"$f":"100-D8*5","v":100},{"$f":"C8+E8","v":178}]
["Santo António ","Francisco Olival",82,null,95,{"$f":"C9+E9","v":177}]
["Caniço ","Gonçalo Andrade Góis",76,null,{"$f":"100-D10*5","v":100},{"$f":"C10+E10","v":176}]
["Francisco M S Barreto ","Pedro Jardim",73,null,{"$f":"100-D11*5","v":100},{"$f":"C11+E11","v":173}]
["Ângelo Augusto da Silva ","Tiago Luís",73,null,{"$f":"100-D12*5","v":100},{"$f":"C12+E12","v":173}]
["Campanário","José Vares",78,null,95,{"$f":"C13+E13","v":173}]
["Louros","Alexandre Berenguer",82,null,90,{"$f":"C14+E14","v":172}]
["Alfredo Ferreira Nóbrega Júnior ","Hugo Carvalho",69,null,{"$f":"100-D15*5","v":100},{"$f":"C15+E15","v":169}]
["Gonçalves Zarco ","João Vieira",69,null,{"$f":"100-D16*5","v":100},{"$f":"C16+E16","v":169}]
["Santana","Leandro Coelho",69,null,{"$f":"100-D17*5","v":100},{"$f":"C17+E17","v":169}]
["Lucinda Andrade","Pedro Luís Ferreira Fernandes",73,0,95,{"$f":"C18+E18","v":168}]
["Ponta do Sol","Francisco Ribeiro",73,null,95,{"$f":"C19+E19","v":168}]
["Curral das Freiras","João André do Espírito Santo",73,null,95,{"$f":"C20+E20","v":168}]
["São Jorge ","João Tomás Gonçalves Jesus  ",64,null,{"$f":"100-D21*5","v":100},{"$f":"C21+E21","v":164}]
[" Torre","João Martins",61,null,{"$f":"100-D22*5","v":100},{"$f":"C22+E22","v":161}]
["Calheta","Alexandre Luís Moreira Lucas",60,null,{"$f":"100-D23*5","v":100},{"$f":"C23+E23","v":160}]
["Porto da Cruz ","Gonçalo Nuno Basílio Tavares",58,null,{"$f":"100-D24*5","v":100},{"$f":"C24+E24","v":158}]
["Caniçal","Joana Vieira",60,null,95,{"$f":"C25+E25","v":155}]
["Padre Manuel Álvares ","André Bernardo Gouveia",51,null,95,{"$f":"C26+E26","v":146}]
["Santa Cruz ","Jorge Gouveia",60,null,85,{"$f":"C27+E27","v":145}]
["Carmo - Luís Maurílio Silva Dantas","Diogo Rafael dos Reis Soares",42,null,95,{"$f":"C28+E28","v":137}]
["Estreito de Câmara de Lobos ","André Santos",null,null,{"$f":"100-D29*5","v":100},{"$f":"C29+E29","v":100}]